fUST/lending_fUST_20251004
["ID","MTS","AMOUNT","RATE_DAILY","PERIOD"]
[388976871,1759553440146,-500.0,0.00024657,9]
[388976873,1759553440156,-467.58598247,0.00024657,9]
[388976876,1759553440165,-500.0,0.00024657,9]
[388976878,1759553440175,-512.88,0.00024657,9]
[388976880,1759553440184,-500.0,0.00024657,9]
[388976882,1759553440193,-500.0,0.00024657,9]
[388976884,1759553440202,-500.0,0.00024657,9]
[388976886,1759553440212,-160.9072093,0.00024657,9]
[388976888,1759553440221,-500.0,0.00024657,9]
[388976890,1759553440231,-500.0,0.00024657,9]
[388976892,1759553440240,-1209.86,0.00024657,9]
[388976894,1759553440249,-500.0,0.00024657,9]
[388976896,1759553440258,-1090.68,0.00024657,9]
[388976898,1759553440267,-500.0,0.00024657,9]
[388976900,1759553440277,-500.0,0.00024657,9]
[388976902,1759553440287,-500.0,0.00024657,9]
[388976904,1759553440296,-500.0,0.00024657,9]
[388976906,1759553440305,-500.0,0.00024657,9]
[388976907,1759553440315,-500.0,0.00024657,9]
[388976909,1759553440324,-663.46,0.00024657,9]
[388976911,1759553440333,-500.0,0.00024657,9]
[388976913,1759553440343,-500.0,0.00024657,9]
[388976915,1759553440352,-500.0,0.00024657,9]
[388976917,1759553440361,-555.82,0.00024657,9]
[388976919,1759553440370,-500.0,0.00024657,9]
[388976921,1759553440380,-500.0,0.00024657,9]
[388976923,1759553440389,-500.0,0.00024657,9]
[388976925,1759553440398,-500.0,0.00024657,9]
[388976927,1759553440407,-500.0,0.00024657,9]
[388976929,1759553440416,-500.0,0.00024657,9]
[388976931,1759553440426,-500.0,0.00024657,9]
[388976933,1759553440435,-500.0,0.00024657,9]
[388976935,1759553440445,-500.0,0.00024657,9]
[388976937,1759553440454,-500.0,0.00024657,9]
[388976939,1759553440463,-812.61,0.00024657,9]
[388976941,1759553440473,-500.0,0.00024657,9]
[388976943,1759553440482,-500.0,0.00024657,9]
[388976945,1759553440491,-500.0,0.00024657,9]
[388976947,1759553440500,-500.0,0.00024657,9]
[388976949,1759553440509,-500.0,0.00024657,9]
[388976950,1759553440518,-500.0,0.00024657,9]
[388976952,1759553440527,-500.0,0.00024657,9]
[388976954,1759553440537,-500.0,0.00024657,9]
[388976956,1759553440547,-500.0,0.00024657,9]
[388976958,1759553440557,-500.0,0.00024657,9]
[388976961,1759553440567,-500.0,0.00024657,9]
[388976962,1759553440576,-567.6852017,0.00024657,9]
[388976965,1759553440586,-500.0,0.00024657,2]
[388976966,1759553440595,-500.0,0.00024657,9]
[388976969,1759553440605,-500.0,0.00024657,9]
[388976971,1759553440615,-500.0,0.00024657,9]
[388976972,1759553440625,-1091.08,0.00024657,9]
[388976974,1759553440635,-500.0,0.00024657,9]
[388976976,1759553440646,-583.51,0.00024657,9]
[388976978,1759553440656,-500.0,0.00024657,9]
[388976980,1759553440665,-1283.37,0.00024657,9]
[388976982,1759553440677,-500.0,0.00024657,9]
[388976984,1759553440687,-500.0,0.00024657,9]
[388976986,1759553440696,-500.0,0.00024657,9]
[388976988,1759553440706,-500.0,0.00024657,9]
[388976990,1759553440714,-500.0,0.00024657,9]
[388976992,1759553440723,-405.15674465,0.00024657,9]
[388977014,1759553440928,-500.0,0.00024657,9]
[388977016,1759553440943,-500.0,0.00024657,9]
[388977018,1759553440953,-500.0,0.00024657,9]
[388977020,1759553440962,-1311.6,0.00024657,9]
[388977022,1759553440972,-500.0,0.00024657,9]
[388977024,1759553440981,-500.0,0.00024657,9]
[388977026,1759553440991,-500.0,0.00024657,9]
[388977028,1759553441000,-500.0,0.00024657,9]
[388977030,1759553441009,-500.0,0.00024657,9]
[388977032,1759553441019,-1398.61,0.00024657,9]
[388977034,1759553441029,-500.0,0.00024657,9]
[388977036,1759553441038,-500.0,0.00024657,9]
[388977038,1759553441047,-500.0,0.00024657,9]
[388977040,1759553441056,-734.75,0.00024657,9]
[388977042,1759553441065,-500.0,0.00024657,9]
[388977044,1759553441075,-500.0,0.00024657,9]
[388977046,1759553441084,-500.0,0.00024657,9]
[388977047,1759553441094,-500.0,0.00024657,9]
[388977049,1759553441103,-787.97,0.00024657,9]
[388977051,1759553441113,-500.0,0.00024657,9]
[388977053,1759553441123,-465.92726004,0.00024657,9]
[388977055,1759553441132,-500.0,0.00024657,9]
[388977057,1759553441142,-500.0,0.00024657,9]
[388977059,1759553441151,-500.0,0.00024657,9]
[388977061,1759553441161,-500.0,0.00024657,7]
[388977063,1759553441170,-500.0,0.00024657,9]
[388977065,1759553441180,-500.0,0.00024657,9]
[388977067,1759553441189,-500.0,0.00024657,9]
[388977069,1759553441199,-500.0,0.00024657,9]
[388977071,1759553441208,-500.0,0.00024657,9]
[388977073,1759553441217,-500.0,0.00024657,9]
[388977075,1759553441227,-438.50681424,0.00024657,9]
[388977077,1759553441236,-500.0,0.00024657,9]
[388977079,1759553441245,-1849.17,0.00024657,9]
[388977081,1759553441254,-500.0,0.00024657,9]
[388977083,1759553441263,-500.0,0.00024657,7]
[388977085,1759553441273,-1089.51,0.00024657,9]
[388977087,1759553441282,-500.0,0.00024657,9]
[388977089,1759553441292,-1840.83,0.00024657,9]
[388977091,1759553441301,-500.0,0.00024657,9]
[388977093,1759553441312,-500.0,0.00024657,9]
[388977095,1759553441322,-447.73352119,0.00024657,9]
[388977097,1759553441331,-500.0,0.00024657,9]
[388977099,1759553441340,-273.44983229,0.00024657,9]
[388977101,1759553441349,-500.0,0.00024657,9]
[388977103,1759553441358,-303.88415894,0.00024657,9]
[388977105,1759553441367,-1428.82,0.00024657,9]
[388977107,1759553441377,-500.0,0.00024657,9]
[388977109,1759553441386,-925.4,0.00024657,9]
[388977111,1759553441396,-500.0,0.00024657,9]
[388977113,1759553441405,-545.19325996,0.00024657,9]
[388977114,1759553441414,-500.0,0.00024657,9]
[388977116,1759553441423,-500.0,0.00024657,9]
[388977118,1759553441432,-500.0,0.00024657,9]
[388977120,1759553441442,-500.0,0.00024657,9]
[388977122,1759553441451,-500.0,0.00024657,9]
[388977124,1759553441460,-500.0,0.00024657,9]
[388977126,1759553441469,-500.0,0.00024657,9]
[388977128,1759553441479,-500.0,0.00024657,9]
[388977130,1759553441488,-484.02391211,0.00024657,9]
[388977132,1759553441497,-500.0,0.00024657,9]
[388977134,1759553441506,-500.0,0.00024657,9]
[388977136,1759553441516,-3783.14,0.00024657,9]
[388977138,1759553441525,-858.6,0.00024657,9]
[388977140,1759553441534,-500.0,0.00024657,9]
[388977142,1759553441543,-624.96,0.00024657,9]
[388977144,1759553441553,-500.0,0.00024657,9]
[388977146,1759553441562,-500.0,0.00024657,9]
[388977148,1759553441572,-489.61416106,0.00024657,9]
[388977150,1759553441582,-863.59,0.00024657,9]
[388977152,1759553441591,-500.0,0.00024657,9]
[388977154,1759553441600,-500.0,0.00024657,9]
[388977156,1759553441609,-500.0,0.00024657,9]
[388977158,1759553441618,-1827.43,0.00024657,9]
[388977160,1759553441628,-500.0,0.00024657,9]
[388977162,1759553441637,-500.0,0.00024657,9]
[388977164,1759553441646,-300.86542138,0.00024657,9]
[388977166,1759553441655,-500.0,0.00024657,9]
[388977168,1759553441665,-443.05911259,0.00024657,9]
[388977169,1759553441678,-500.0,0.00024657,9]
[388977172,1759553441690,-500.0,0.00024657,9]
[388977174,1759553441699,-1463.05,0.00024657,9]
[388977175,1759553441711,-500.0,0.00024657,9]
[388977177,1759553441720,-500.0,0.00024657,9]
[388977179,1759553441730,-500.0,0.00024657,9]
[388977182,1759553441739,-501.34,0.00024657,9]
[388977184,1759553441750,-500.0,0.00024657,9]
[388977186,1759553441760,-500.0,0.00024657,9]
[388977188,1759553441769,-500.0,0.00024657,9]
[388977189,1759553441779,-313.2259023,0.00024657,9]
[388977191,1759553441788,-500.0,0.00024657,9]
[388977193,1759553441798,-500.0,0.00024657,9]
[388977195,1759553441808,-366.12182424,0.00024657,9]
[388977197,1759553441818,-500.0,0.00024657,9]
[388977199,1759553441827,-500.0,0.00024657,9]
[388977201,1759553441837,-500.0,0.00024657,9]
[388977203,1759553441846,-500.0,0.00024657,9]
[388977205,1759553441855,-500.0,0.00024657,9]
[388977207,1759553441864,-500.0,0.00024657,9]
[388977209,1759553441873,-1023.82,0.00024657,9]
[388977211,1759553441882,-500.0,0.00024657,9]
[388977213,1759553441892,-812.39,0.00024657,9]
[388977215,1759553441901,-500.0,0.00024657,9]
[388977217,1759553441910,-500.0,0.00024657,9]
[388977219,1759553441919,-500.0,0.00024657,9]
[388977221,1759553441928,-500.0,0.00024657,9]
[388977223,1759553441938,-429.28569681,0.00024657,9]
[388977225,1759553441947,-500.0,0.00024657,9]
[388977227,1759553441956,-500.0,0.00024657,9]
[388977229,1759553441965,-500.0,0.00024657,9]
[388977231,1759553441974,-500.0,0.00024657,9]
[388977233,1759553441983,-500.0,0.00024657,9]
[388977235,1759553441992,-500.0,0.00024657,9]
[388977237,1759553442001,-500.0,0.00024657,9]
[388977239,1759553442011,-466.96776007,0.00024657,9]
[388977241,1759553442020,-500.0,0.00024657,9]
[388977242,1759553442030,-560.32,0.00024657,9]
[388977244,1759553442040,-1072.13,0.00024657,9]
[388977247,1759553442049,-1386.26,0.00024657,9]
[388977248,1759553442059,-500.0,0.00024657,9]
[388977251,1759553442070,-500.0,0.00024657,9]
[388977253,1759553442079,-500.0,0.00024657,9]
[388977254,1759553442089,-1324.47,0.00024657,9]
[388977257,1759553442099,-500.0,0.00024657,9]
[388977259,1759553442108,-485.50639329,0.00024657,9]
[388977260,1759553442118,-617.26,0.00024657,9]
[388977262,1759553442129,-745.95,0.00024657,9]
[388977264,1759553442139,-500.0,0.00024657,9]
[388977267,1759553442149,-500.0,0.00024657,9]
[388977269,1759553442158,-500.0,0.00024657,9]
[388977271,1759553442168,-500.0,0.00024657,9]
[388977272,1759553442178,-500.0,0.00024657,9]
[388977273,1759553442187,-500.0,0.00024657,9]
[388977274,1759553442196,-160.0,0.00024657,7]
[388977275,1759553442205,-821.09,0.00024657,9]
[388977276,1759553442214,-500.0,0.00024657,9]
[388977277,1759553442223,-2796.29,0.00024657,9]
[388977278,1759553442233,-1192.31,0.00024657,9]
[388977279,1759553442242,-1423.51,0.00024657,9]
[388977280,1759553442251,-500.0,0.00024657,9]
[388977281,1759553442259,-500.0,0.00024657,9]
[388977282,1759553442268,-500.0,0.00024657,9]
[388977283,1759553442277,-500.0,0.00024657,9]
[388977284,1759553442286,-500.0,0.00024657,9]
[388977285,1759553442295,-500.0,0.00024657,9]
[388977286,1759553442304,-500.0,0.00024657,9]
[388977287,1759553442314,-592.13,0.00024657,9]
[388977288,1759553442323,-500.0,0.00024657,9]
[388977290,1759553442332,-968.28,0.00024657,9]
[388977292,1759553442341,-500.0,0.00024657,9]
[388977294,1759553442351,-2267.73,0.00024657,9]
[388977296,1759553442360,-487.43933988,0.00024657,9]
[388977298,1759553442371,-905.49,0.00024657,9]
[388977300,1759553442380,-587.4,0.00024657,9]
[388977303,1759553442390,-500.0,0.00024657,9]
[388977304,1759553442400,-500.0,0.00024657,9]
[388977306,1759553442410,-500.0,0.00024657,9]
[388977308,1759553442419,-500.0,0.00024657,9]
[388977311,1759553442429,-500.0,0.00024657,9]
[388977313,1759553442438,-500.0,0.00024657,9]
[388977314,1759553442447,-500.0,0.00024657,9]
[388977317,1759553442457,-862.08,0.00024657,9]
[388977319,1759553442467,-500.0,0.00024657,9]
[388977321,1759553442478,-500.0,0.00024657,9]
[388977323,1759553442487,-500.0,0.00024657,9]
[388977325,1759553442497,-639.24,0.00024657,9]
[388977327,1759553442506,-500.0,0.00024657,9]
[388977329,1759553442516,-1793.04,0.00024657,9]
[388977331,1759553442525,-500.0,0.00024657,9]
[388977333,1759553442536,-500.0,0.00024657,9]
[388977335,1759553442545,-500.0,0.00024657,9]
[388977337,1759553442555,-500.0,0.00024657,9]
[388977339,1759553442569,-500.0,0.00024657,9]
[388977341,1759553442579,-960.56,0.00024657,9]
[388977343,1759553442590,-618.67,0.00024657,9]
[388977345,1759553442603,-151.0,0.00024657,7]
[388977347,1759553442612,-500.0,0.00024657,9]
[388977350,1759553442621,-712.05,0.00024657,9]
[388977352,1759553442631,-500.0,0.00024657,9]
[388977354,1759553442640,-500.0,0.00024657,9]
[388977355,1759553442649,-500.0,0.00024657,9]
[388977357,1759553442658,-1000.0,0.00024657,9]
[388977358,1759553442667,-500.0,0.00024657,9]
[388977361,1759553442682,-500.0,0.00024657,9]
[388977362,1759553442692,-500.0,0.00024657,9]
[388977365,1759553442703,-500.0,0.00024657,9]
[388977367,1759553442712,-500.0,0.00024657,9]
[388977368,1759553442722,-1381.6,0.00024657,9]
[388977370,1759553442732,-500.0,0.00024657,9]
[388977372,1759553442741,-500.0,0.00024657,9]
[388977374,1759553442750,-500.0,0.00024657,9]
[388977376,1759553442759,-500.0,0.00024657,9]
[388977378,1759553442768,-500.0,0.00024657,9]
[388977380,1759553442778,-1005.72,0.00024657,9]
[388977382,1759553442795,-709.95,0.00024657,9]
[388977384,1759553442806,-500.0,0.00024657,9]
[388977386,1759553442816,-500.0,0.00024657,9]
[388977388,1759553442825,-1206.83,0.00024657,9]
[388977390,1759553442834,-1076.8,0.00024657,9]
[388977392,1759553442843,-2164.11,0.00024657,9]
[388977394,1759553442852,-500.0,0.00024657,9]
[388977396,1759553442860,-500.0,0.00024657,9]
[388977398,1759553442869,-1538.66,0.00024657,9]
[388977400,1759553442878,-500.0,0.00024657,9]
[388977402,1759553442887,-4124.57,0.00024657,9]
[388977404,1759553442897,-554.1,0.00024657,9]
[388977406,1759553442906,-500.0,0.00024657,9]
[388977408,1759553442915,-793.17,0.00024657,9]
[388977410,1759553442924,-615.52,0.00024657,9]
[388977412,1759553442933,-500.0,0.00024657,9]
[388977414,1759553442942,-500.0,0.00024657,9]
[388977416,1759553442951,-500.0,0.00024657,9]
[388977418,1759553442960,-500.0,0.00024657,9]
[388977420,1759553442969,-500.0,0.00024657,9]
[388977422,1759553442978,-500.0,0.00024657,9]
[388977424,1759553442987,-509.64,0.00024657,9]
[388977426,1759553442997,-500.0,0.00024657,9]
[388977428,1759553443006,-2455.81,0.00024657,9]
[388977429,1759553443016,-3895.14,0.00024657,9]
[388977431,1759553443025,-1172.46,0.00024657,9]
[388977434,1759553443035,-500.0,0.00024657,9]
[388977435,1759553443044,-500.0,0.00024657,9]
[388977437,1759553443053,-500.0,0.00024657,9]
[388977440,1759553443064,-1938.34,0.00024657,9]
[388977442,1759553443074,-374.23650633,0.00024657,9]
[388977444,1759553443084,-500.0,0.00024657,9]
[388977446,1759553443094,-151.0,0.00024657,7]
[388977448,1759553443104,-483.31641846,0.00024657,9]
[388977450,1759553443114,-500.0,0.00024657,9]
[388977452,1759553443124,-500.0,0.00024657,9]
[388977454,1759553443134,-634.06,0.00024657,9]
[388977456,1759553443144,-804.16,0.00024657,9]
[388977458,1759553443154,-809.31,0.00024657,9]
[388977460,1759553443163,-809.31,0.00024657,9]
[388977463,1759553443172,-809.31,0.00024657,9]
[388977466,1759553443181,-9306.08,0.00024657,3]
[388977469,1759553443190,-809.31,0.00024657,9]
[388977472,1759553443200,-809.31,0.00024657,9]
[388977475,1759553443209,-809.31,0.00024657,9]
[388977478,1759553443219,-1966.1,0.00024657,9]
[388977482,1759553443229,-809.31,0.00024657,9]
[388977485,1759553443238,-500.0,0.00024657,9]
[388977488,1759553443247,-809.31,0.00024657,9]
[388977491,1759553443256,-809.31,0.00024657,9]
[388977494,1759553443265,-809.31,0.00024657,9]
[388977497,1759553443275,-809.31,0.00024657,9]
[388977500,1759553443284,-809.31,0.00024657,9]
[388977503,1759553443293,-809.31,0.00024657,9]
[388977516,1759553443349,-809.31,0.00024657,9]
[388977519,1759553443359,-809.31,0.00024657,9]
[388977522,1759553443368,-809.31,0.00024657,9]
[388977525,1759553443377,-809.31,0.00024657,9]
[388977529,1759553443386,-809.31,0.00024657,9]
[388977532,1759553443395,-500.0,0.00024657,9]
[388977535,1759553443404,-500.0,0.00024657,9]
[388977538,1759553443413,-500.0,0.00024657,9]
[388977541,1759553443423,-552.49,0.00024657,9]
[388977544,1759553443432,-809.31,0.00024657,9]
[388977547,1759553443441,-809.31,0.00024657,9]
[388977550,1759553443452,-809.31,0.00024657,9]
[388977553,1759553443463,-809.31,0.00024657,9]
[388977557,1759553443472,-500.0,0.00024657,9]
[388977559,1759553443482,-809.31,0.00024657,9]
[388977563,1759553443492,-809.37,0.00024657,9]
[388977566,1759553443502,-500.0,0.00024657,9]
[388977569,1759553443512,-500.0,0.00024657,9]
[388977572,1759553443523,-500.0,0.00024657,9]
[388977575,1759553443531,-151.0,0.00024657,7]
[388977578,1759553443540,-500.0,0.00024657,9]
[388977581,1759553443549,-500.0,0.00024657,9]
[388977584,1759553443559,-500.0,0.00024657,9]
[388977587,1759553443568,-1555.24,0.00024657,9]
[388977590,1759553443577,-500.0,0.00024657,9]
[388977593,1759553443587,-4968.93,0.00024657,9]
[388977596,1759553443596,-500.0,0.00024657,9]
[388977599,1759553443605,-500.0,0.00024657,9]
[388977602,1759553443615,-500.0,0.00024657,9]
[388977605,1759553443624,-660.9,0.00024657,9]
[388977607,1759553443635,-500.0,0.00024657,9]
[388977609,1759553443644,-660.9,0.00024657,9]
[388977611,1759553443655,-660.9,0.00024657,9]
[388977613,1759553443664,-660.9,0.00024657,9]
[388977615,1759553443678,-660.9,0.00024657,9]
[388977616,1759553443689,-660.9,0.00024657,9]
[388977619,1759553443699,-500.0,0.00024657,9]
[388977620,1759553443709,-1018.69,0.00024657,9]
[388977622,1759553443719,-500.0,0.00024657,9]
[388977624,1759553443728,-500.0,0.00024657,9]
[388977626,1759553443738,-660.9,0.00024657,9]
[388977628,1759553443746,-660.9,0.00024657,9]
[388977630,1759553443756,-660.9,0.00024657,9]
[388977632,1759553443765,-1887.69,0.00024657,9]
[388977635,1759553443776,-660.9,0.00024657,9]
[388977637,1759553443785,-660.9,0.00024657,9]
[388977639,1759553443795,-660.9,0.00024657,9]
[388977641,1759553443804,-660.9,0.00024657,9]
[388977643,1759553443814,-660.9,0.00024657,9]
[388977645,1759553443823,-660.9,0.00024657,9]
[388977647,1759553443832,-500.0,0.00024657,9]
[388977649,1759553443841,-660.9,0.00024657,9]
[388977650,1759553443850,-500.0,0.00024657,9]
[388977652,1759553443860,-660.9,0.00024657,9]
[388977654,1759553443869,-660.9,0.00024657,9]
[388977657,1759553443879,-500.0,0.00024657,9]
[388977658,1759553443888,-660.9,0.00024657,9]
[388977661,1759553443898,-660.9,0.00024657,9]
[388977662,1759553443907,-500.0,0.00024657,9]
[388977665,1759553443917,-660.9,0.00024657,9]
[388977667,1759553443926,-500.0,0.00024657,9]
[388977669,1759553443935,-500.0,0.00024657,9]
[388977670,1759553443945,-660.9,0.00024657,9]
[388977672,1759553443954,-660.9,0.00024657,9]
[388977674,1759553443963,-660.92246321,0.00024657,9]
[388977676,1759553443972,-536.81,0.00024657,9]
[388977679,1759553443982,-1473.62,0.00024657,9]
[388977681,1759553443991,-500.0,0.00024657,9]
[388977682,1759553444000,-480.0,0.00024657,7]
[388977684,1759553444009,-7339.67,0.00024657,9]
[388977686,1759553444018,-500.0,0.00024657,9]
[388977688,1759553444027,-710.71,0.00024657,9]
[388977690,1759553444037,-500.0,0.00024657,9]
[388977692,1759553444046,-360.27187277,0.00024657,9]
[388977694,1759553444055,-500.0,0.00024657,9]
[388977696,1759553444064,-500.0,0.00024657,9]
[388977698,1759553444074,-500.0,0.00024657,9]
[388977700,1759553444083,-500.0,0.00024657,9]
[388977702,1759553444092,-1666.17,0.00024657,9]
[388977704,1759553444101,-500.0,0.00024657,9]
[388977706,1759553444111,-500.0,0.00024657,9]
[388977708,1759553444120,-2017.14,0.00024657,9]
[388977710,1759553444129,-500.0,0.00024657,9]
[388977712,1759553444138,-551.35914606,0.00024657,9]
[388977714,1759553444147,-500.0,0.00024657,9]
[388977716,1759553444156,-500.0,0.00024657,9]
[388977718,1759553444165,-500.0,0.00024657,9]
[388977720,1759553444174,-677.78,0.00024657,9]
[388977722,1759553444183,-500.0,0.00024657,9]
[388977724,1759553444193,-500.0,0.00024657,9]
[388977726,1759553444202,-792.78,0.00024657,9]
[388977728,1759553444211,-500.0,0.00024657,9]
[388977730,1759553444220,-500.0,0.00024657,9]
[388977732,1759553444229,-500.0,0.00024657,9]
[388977734,1759553444238,-500.0,0.00024657,9]
[388977736,1759553444247,-500.0,0.00024657,9]
[388977738,1759553444256,-500.0,0.00024657,9]
[388977740,1759553444266,-500.0,0.00024657,9]
[388977742,1759553444275,-500.0,0.00024657,9]
[388977744,1759553444284,-500.0,0.00024657,9]
[388977746,1759553444293,-500.0,0.00024657,9]
[388977748,1759553444302,-500.0,0.00024657,9]
[388977750,1759553444311,-677.74,0.00024657,9]
[388977752,1759553444320,-500.0,0.00024657,9]
[388977754,1759553444329,-677.31,0.00024657,9]
[388977756,1759553444338,-500.0,0.00024657,9]
[388977758,1759553444347,-500.0,0.00024657,9]
[388977760,1759553444356,-500.0,0.00024657,9]
[388977762,1759553444367,-745.88,0.00024657,9]
[388977764,1759553444376,-480.0,0.00024657,9]
[388977766,1759553444385,-500.0,0.00024657,9]
[388977768,1759553444394,-3644.7,0.00024657,9]
[388977770,1759553444403,-500.0,0.00024657,9]
[388977772,1759553444412,-500.0,0.00024657,9]
[388977774,1759553444422,-500.0,0.00024657,9]
[388977776,1759553444431,-500.0,0.00024657,9]
[388977778,1759553444440,-500.0,0.00024657,9]
[388977780,1759553444449,-481.01183531,0.00024657,9]
[388977782,1759553444458,-500.0,0.00024657,9]
[388977784,1759553444467,-1518.1,0.00024657,9]
[388977786,1759553444475,-488.73591297,0.00024657,9]
[388977788,1759553444485,-2343.14,0.00024657,9]
[388977790,1759553444495,-500.0,0.00024657,9]
[388977792,1759553444504,-500.0,0.00024657,9]
[388977794,1759553444513,-3829.1,0.00024657,9]
[388977796,1759553444522,-1067.0,0.00024657,9]
[388977798,1759553444531,-5009.57,0.00024657,9]
[388977800,1759553444540,-596.91,0.00024657,9]
[388977802,1759553444549,-500.0,0.00024657,9]
[388977804,1759553444557,-527.84,0.00024657,9]
[388977806,1759553444566,-500.0,0.00024657,9]
[388977808,1759553444575,-1280.83,0.00024657,9]
[388977810,1759553444584,-1222.42,0.00024657,9]
[388977812,1759553444593,-480.0,0.00024657,9]
[388977813,1759553444602,-790.26,0.00024657,9]
[388977816,1759553444611,-500.0,0.00024657,9]
[388977817,1759553444620,-500.0,0.00024657,9]
[388977820,1759553444632,-509.72,0.00024657,9]
[388977821,1759553444642,-539.32,0.00024657,9]
[388977823,1759553444653,-500.0,0.00024657,9]
[388977825,1759553444661,-500.0,0.00024657,9]
[388977827,1759553444674,-760.89,0.00024657,9]
[388977830,1759553444684,-500.0,0.00024657,9]
[388977832,1759553444694,-736.36,0.00024657,9]
[388977833,1759553444704,-1000.0,0.00024657,9]
[388977835,1759553444713,-500.0,0.00024657,9]
[388977837,1759553444722,-500.0,0.00024657,9]
[388977839,1759553444730,-1160.09,0.00024657,9]
[388977841,1759553444739,-500.0,0.00024657,9]
[388977843,1759553444751,-500.0,0.00024657,9]
[388977845,1759553444759,-2954.71,0.00024657,9]
[388977847,1759553444769,-500.0,0.00024657,10]
[388977849,1759553444778,-500.0,0.00024657,10]
[388977851,1759553444787,-500.0,0.00024657,10]
[388977853,1759553444797,-500.0,0.00024657,10]
[388977855,1759553444806,-500.0,0.00024657,9]
[388977857,1759553444815,-500.0,0.00024657,10]
[388977859,1759553444824,-500.0,0.00024657,10]
[388977861,1759553444833,-1859.676022,0.00024657,7]
[388977863,1759553444842,-500.0,0.00024657,10]
[388977865,1759553444851,-458.1176446,0.00024657,10]
[388977867,1759553444859,-500.0,0.00024657,9]
[388977869,1759553444870,-1859.676022,0.00024657,7]
[388977871,1759553444879,-500.0,0.00024657,9]
[388977873,1759553444887,-500.0,0.00024657,9]
[388977875,1759553444896,-1859.676022,0.00024657,7]
[388977876,1759553444905,-500.0,0.00024657,9]
[388977878,1759553444914,-863.62,0.00024657,9]
[388977880,1759553444924,-1859.676022,0.00024657,7]
[388977882,1759553444933,-500.0,0.00024657,9]
[388977884,1759553444942,-500.0,0.00024657,9]
[388977887,1759553444951,-500.0,0.00024657,9]
[388977888,1759553444960,-886.92,0.00024657,9]
[388977890,1759553444969,-500.0,0.00024657,9]
[388977892,1759553444979,-500.0,0.00024657,9]
[388977894,1759553444988,-790.03,0.00024657,9]
[388977897,1759553444998,-500.0,0.00024657,9]
[388977899,1759553445007,-1610.21,0.00024657,9]
[388977900,1759553445016,-500.0,0.00024657,9]
[388977902,1759553445026,-500.0,0.00024657,9]
[388977904,1759553445035,-876.52,0.00024657,9]
[388977907,1759553445045,-500.0,0.00024657,9]
[388977909,1759553445054,-500.0,0.00024657,9]
[388977910,1759553445063,-500.0,0.00024657,9]
[388977912,1759553445072,-500.0,0.00024657,9]
[388977914,1759553445082,-676.18,0.00024657,9]
[388977916,1759553445092,-1493.18,0.00024657,9]
[388977918,1759553445101,-500.0,0.00024657,9]
[388977920,1759553445111,-500.0,0.00024657,9]
[388977922,1759553445121,-817.35,0.00024657,9]